[Event "US Masters"]
[Site "Charlotte USA"]
[Date "2023.11.25"]
[Round "6.21"]
[White "Mendes, Aaron Reeve"]
[Black "Cruz, Cristhian"]
[Result "0-1"]
[ECO "C00"]
[WhiteElo "2262"]
[BlackElo "2498"]
[PlyCount "142"]
[GameId "2129404702747985"]
[EventDate "2023.11.24"]
[EventType "swiss"]
[EventRounds "9"]
[EventCountry "USA"]
[SourceTitle "10 Days #742"]
[Source "ChessMix"]
[SourceDate "2023.12.01"]
[SourceVersion "1"]
[SourceVersionDate "2023.12.01"]
[SourceQuality "1"]
[TimeControl "5400+30"]

1. e4 {[%emt 1:31:00]} e6 {[%emt 0:03:27]} 2. Nf3 {[%emt 0:00:00]} d5 {[%emt 0:00:24]} 3. Nc3 {[%emt 0:00:00]} d4 {[%emt 0:00:27]} 4. Ne2 {[%emt 0:00:00]} c5 {[%emt 0:01:03]} 5. c3 {[%emt 0:00:00]} Nf6 {[%emt 0:01:01]} 6. e5 {[%emt 0:00:00]} Nfd7 {[%emt 1:27:08]} 7. cxd4 {[%emt 0:00:00]} cxd4 {[%emt 0:00:00]} 8. Nexd4 {[%emt 0:00:00]} Nxe5 {[%emt 0:01:00]} 9. Nxe5 {[%emt 0:00:00]} Qxd4 {[%emt 0:00:00]} 10. Nf3 {[%emt 0:00:00]} Qd6 {[%emt 0:00:00]} 11. d4 {[%emt 0:00:00]} Be7 {[%emt 0:00:00]} 12. Bd3 {[%emt 0:00:00]} O-O {[%emt 0:00:00]} 13. O-O {[%emt 0:00:00]} Nc6 {[%emt 0:02:30]} 14. Be3 {[%emt 0:00:00]} b6 {[%emt 0:00:00]} 15. Be4 {[%emt 0:00:00]} Bb7 {[%emt 0:00:00]} 16. Ne5 {[%emt 0:00:00]} f5 {[%emt 0:00:00]} 17. Bxc6 {[%emt 0:00:00]} Bxc6 {[%emt 0:00:00]} 18. Bf4 {[%emt 0:00:00]} Qd5 {[%emt 0:00:00]} 19. Nxc6 {[%emt 0:00:00]} Qxc6 {[%emt 0:00:00]} 20. Qb3 {[%emt 0:00:00]} Qd5 {[%emt 0:00:00]} 21. Qxd5 {[%emt 0:00:00]} exd5 {[%emt 0:00:00]} 22. Rac1 {[%emt 0:00:00]} Rac8 {[%emt 0:00:00]} 23. Be5 {[%emt 0:00:00]} Kf7 {[%emt 0:00:00]} 24. Rfe1 {[%emt 0:00:00]} Bb4 {[%emt 0:00:00]} 25. Red1 {[%emt 0:00:00]} Bd2 {[%emt 0:00:00]} 26. Rc7+ {[%emt 0:00:00]} Rxc7 {[%emt 0:00:00]} 27. Bxc7 {[%emt 0:00:00]} Bh6 {[%emt 0:00:00]} 28. Bd6 {[%emt 0:00:00]} Rc8 {[%emt 0:00:00]} 29. Bb4 {[%emt 0:00:00]} Rc2 {[%emt 0:00:00]} 30. Rb1 {[%emt 0:00:00]} Bc1 {[%emt 0:00:00]} 31. Bc3 {[%emt 0:00:00]} Bd2 {[%emt 0:00:00]} 32. Bxd2 {[%emt 0:00:00]} Rxd2 {[%emt 0:00:00]} 33. Kf1 {[%emt 0:00:00]} Ke6 {[%emt 0:00:00]} 34. Ke1 {[%emt 0:00:00]} Rxd4 {[%emt 0:00:00]} 35. b3 {[%emt 0:00:00]} a5 {[%emt 0:00:00]} 36. f3 {[%emt 0:00:00]} Kd6 {[%emt 0:00:00]} 37. Ke2 {[%emt 0:00:00]} f4 {[%emt 0:00:00]} 38. a3 {[%emt 0:00:00]} b5 {[%emt 0:00:00]} 39. g3 {[%emt 0:00:00]} g6 {[%emt 0:00:00]} 40. Rb2 {[%emt 0:00:00]} h5 {[%emt 0:00:00]} 41. Rb1 {[%emt 0:00:42]} g5 {[%emt 0:00:00]} 42. Rg1 {[%emt 0:01:07]} Ke5 {[%emt 0:14:30]} 43. h4 {[%emt 0:02:20]} g4 {[%emt 0:00:00]} 44. fxg4 {[%emt 0:02:40]} hxg4 {[%emt 0:00:00]} 45. gxf4+ {[%emt 0:00:14]} Kxf4 {[%emt 0:01:30]} 46. Rf1+ {[%emt 0:02:18]} Kg3 {[%emt 0:00:00]} 47. h5 {[%emt 0:00:01]} Re4+ {[%emt 0:00:00]} 48. Kd3 {[%emt 0:00:18]} Re6 {[%emt 0:00:00]} 49. Rf5 {[%emt 0:06:23]} Kh4 {[%emt 0:00:00]} 50. Kd4 {[%emt 0:02:35]} g3 {[%emt 0:00:00]} 51. Kxd5 {[%emt 0:02:52]} Rh6 {[%emt 0:00:00]} 52. Rf4+ {[%emt 0:00:22]} Kh3 {[%emt 0:00:00]} 53. Rf5 {[%emt 0:00:17]} Kg4 {[%emt 0:00:00]} 54. Rf1 {[%emt 0:01:56]} g2 {[%emt 0:00:00]} 55. Rg1 {[%emt 0:00:32]} Kg3 {[%emt 0:00:00]} 56. Kc5 {[%emt 0:00:58]} Rxh5+ {[%emt 0:00:00]} 57. Kb6 {[%emt 0:00:02]} b4 {[%emt 0:00:00]} 58. axb4 {[%emt 0:00:07]} axb4 {[%emt 0:00:00]} 59. Rc1 {[%emt 0:00:26]} Rh1 {[%emt 0:00:09]} 60. Rc7 {[%emt 0:00:22]} g1=Q+ {[%emt 0:00:19]} 61. Kb7 {[%emt 0:00:02]} Qd4 {[%emt 0:00:22]} 62. Ka8 {[%emt 0:00:10]} Ra1+ {[%emt 0:00:17]} 63. Kb8 {[%emt 0:00:05]} Qd8+ {[%emt 0:00:12]} 64. Kb7 {[%emt 0:00:08]} Qa8+ {[%emt 0:00:17]} 65. Kb6 {[%emt 0:00:02]} Qa5+ {[%emt 0:00:17]} 66. Kc6 {[%emt 0:00:06]} Rc1+ {[%emt 0:00:06]} 67. Kd6 {[%emt 0:00:02]} Qxc7+ {[%emt 0:00:07]} 68. Ke6 {[%emt 0:00:06]} Re1+ {[%emt 0:00:11]} 69. Kf6 {[%emt 0:00:05]} Qd6+ {[%emt 0:00:07]} 70. Kf7 {[%emt 0:00:05]} Re7+ {[%emt 0:00:05]} 71. Kg8 {[%emt 0:00:06]} Qd8# {[%emt 0:00:05]} 0-1